bitfinex-derivatives/quotes_SOLF0:USTF0_20241120
["timestamp","ask_amount","ask_price","bid_price","bid_amount"]
[1732071203714,8.19527262,233.88,233.81,6.73341008]
[1732071204915,2.1348,233.87,233.81,6.73341008]
[1732071205117,33.6866758,233.89,233.81,6.73341008]
[1732071205319,8.19050805,233.88,233.81,6.73341008]
[1732071205517,3.8823,233.89,233.81,6.73341008]
[1732071205718,8.18822314,233.88,233.81,6.73341008]
[1732071206215,2.1349,233.86,233.81,6.73341008]
[1732071206715,2.1349,233.86,233.83,6.73341008]
[1732071208922,3.8823,233.89,233.83,6.73341008]
[1732071209118,2.135,233.85,233.83,6.73341008]
[1732071211318,1.3059,233.95,233.83,6.73341008]
[1732071211519,1.3059,233.95,233.8,1.2228]
[1732071211520,2.64,233.94,233.88,6.73341008]
[1732071213228,2.1345,233.91,233.88,6.73341008]
[1732071214130,2.1345,233.9,233.88,6.73341008]
[1732071217327,2.1345,233.9,233.86,6.73341008]
[1732071220032,2.1345,233.9,233.88,6.73341008]
[1732071222130,2.1344,233.92,233.88,6.73341008]
[1732071223134,2.1344,233.92,233.61,8.10991026]
[1732071223135,6.73341008,233.89,233.58,5.30676597]
[1732071223336,6.73341008,233.75,233.67,6.73341008]
[1732071223527,36.32211467,233.91,233.71,6.73341008]
[1732071223833,6.73341008,233.81,233.71,6.73341008]
[1732071224134,2.64,233.8,233.71,6.73341008]
[1732071224534,2.64,233.8,233.63,1.2684]
[1732071224535,2.64,233.8,233.72,6.73341008]
[1732071225234,2.1358,233.77,233.72,6.73341008]
[1732071229036,2.1358,233.76,233.72,6.73341008]
[1732071230537,9.37341008,233.8,233.72,6.73341008]
[1732071230931,2.1356,233.78,233.72,6.73341008]
[1732071231232,9.37341008,233.8,233.72,6.73341008]
[1732071232135,2.1358,233.76,233.7,6.73341008]
[1732071233838,6.73341008,233.78,233.7,6.73341008]
[1732071234241,2.1363,233.71,233.66,6.73341008]
[1732071234640,2.64,233.73,233.66,6.73341008]
[1732071234839,2.1364,233.7,233.66,6.73341008]
[1732071235643,2.64,233.73,233.66,6.73341008]
[1732071236441,2.1364,233.7,233.66,6.73341008]
[1732071236750,2.64,233.73,233.66,6.73341008]
[1732071237041,2.64,233.73,233.64,1.2597]
[1732071237042,2.1365,233.69,233.64,7.99311008]
[1732071238648,2.1365,233.69,233.66,6.73341008]
[1732071238844,1.1901,233.78,233.68,6.73341008]
[1732071239045,1.1901,233.78,233.64,1.2597]
[1732071239046,2.64,233.77,233.71,6.73341008]
[1732071239343,2.1361,233.73,233.71,6.73341008]
[1732071241341,1.1901,233.78,233.71,6.73341008]
[1732071241548,2.64,233.8,233.75,6.73341008]
[1732071241945,2.64,233.8,233.73,6.73341008]
[1732071243052,2.1359,233.75,233.68,2.1364]
[1732071243348,2.1359,233.75,233.72,6.73341008]
[1732071244250,2.64,233.8,233.69,6.73341008]
[1732071244251,2.1361,233.73,233.69,6.73341008]
[1732071244650,2.4746,233.87,233.69,6.73341008]
[1732071244651,6.73341008,233.79,233.69,6.73341008]
[1732071244950,2.64,233.78,233.73,6.73341008]
[1732071245153,2.64,233.79,233.73,6.73341008]
[1732071245350,2.64,233.79,233.71,6.73341008]
[1732071245351,2.1359,233.75,233.71,6.73341008]
[1732071248950,2.64,233.79,233.71,6.73341008]
[1732071249153,2.136,233.74,233.71,6.73341008]
[1732071250153,6.73341008,233.72,233.63,1.2684]
[1732071250354,6.73341008,233.7,233.63,1.2684]
[1732071251459,2.1368,233.65,233.63,1.2684]
[1732071257565,2.1367,233.67,233.64,6.73341008]
[1732071261863,2.1369,233.65,233.63,1.2684]
[1732071262058,6.73341008,233.68,233.63,1.2684]
[1732071263260,2.1368,233.65,233.63,1.2684]
[1732071263865,2.1369,233.64,233.63,1.2684]
[1732071264681,2.1369,233.64,233.61,6.73341008]
[1732071264864,2.1369,233.64,233.59,1.2542]
[1732071264865,6.73341008,233.68,233.59,1.2542]
[1732071265061,6.73341008,233.66,233.57,6.73341008]
[1732071265965,6.73341008,233.66,233.56,3.3761]
[1732071266167,6.73341008,233.66,233.58,6.73341008]
[1732071267070,2.137,233.63,233.58,8.87081008]
[1732071267668,2.1369,233.64,233.58,6.73341008]
[1732071267864,6.73341008,233.66,233.58,6.73341008]
[1732071268366,2.1373,233.6,233.56,1.2385]
[1732071268872,2.1373,233.6,233.57,6.73341008]
[1732071269074,2.1372,233.62,233.57,6.73341008]
[1732071269870,2.1372,233.62,233.59,6.73341008]
[1732071272168,2.64,233.65,233.59,6.73341008]
[1732071272368,6.73341008,233.7,233.61,6.73341008]
[1732071272569,2.64,233.69,233.61,6.73341008]
[1732071272876,2.64,233.69,233.6,2.1372]
[1732071272877,2.64,233.69,233.63,6.73341008]
[1732071273874,2.5075,233.77,233.67,6.73341008]
[1732071274075,2.1363,233.7,233.67,6.73341008]
[1732071274875,2.1362,233.72,233.67,6.73341008]
[1732071275076,6.73341008,233.73,233.65,6.73341008]
[1732071275675,2.1364,233.69,233.65,6.73341008]
[1732071276179,2.1363,233.7,233.65,6.73341008]
[1732071277973,2.64,233.69,233.56,1.2385]
[1732071278179,2.64,233.69,233.61,6.73341008]
[1732071278180,6.73341008,233.67,233.61,6.73341008]
[1732071279277,2.1368,233.65,233.61,6.73341008]
[1732071280276,2.5075,233.77,233.63,6.73341008]
[1732071280586,6.73341008,233.73,233.66,6.73341008]
[1732071280778,2.64,233.72,233.66,6.73341008]
[1732071282183,2.1364,233.7,233.66,6.73341008]
[1732071282684,2.64,233.72,233.66,6.73341008]
[1732071282876,6.73341008,233.71,233.64,6.73341008]
[1732071283786,2.1365,233.68,233.64,6.73341008]
[1732071283981,6.73341008,233.69,233.62,6.73341008]
[1732071284181,6.73341008,233.69,233.6,6.73341008]
[1732071284381,2.1367,233.67,233.6,6.73341008]
[1732071284684,6.73341008,233.61,233.51,6.73341008]
[1732071284875,6.73341008,233.59,233.51,6.73341008]
[1732071285074,2.64,233.58,233.43,2.597]
[1732071285279,6.73341008,233.57,233.49,6.73341008]
[1732071285480,6.73341008,233.57,233.43,2.597]
[1732071285481,6.73341008,233.54,233.46,6.73341008]
[1732071285676,6.73341008,233.56,233.48,6.73341008]
[1732071285980,2.1379,233.54,233.48,6.73341008]
[1732071286187,2.1379,233.54,233.46,2.1385]
[1732071286380,6.73341008,233.56,233.48,6.73341008]
[1732071286781,9.37341008,233.58,233.48,6.73341008]
[1732071286982,9.37341008,233.58,233.43,2.597]
[1732071286983,1.2442,233.65,233.5,6.73341008]
[1732071287183,2.1374,233.59,233.43,2.597]
[1732071287379,2.64,233.61,233.56,6.73341008]
[1732071287788,4.7772,233.61,233.56,6.73341008]
[1732071287983,2.64,233.61,233.56,6.73341008]
[1732071289086,2.64,233.61,233.43,2.597]
[1732071289087,6.73341008,233.6,233.43,2.597]
[1732071289282,6.73341008,233.6,233.51,6.73341008]
[1732071289488,6.73341008,233.6,233.53,6.73341008]
[1732071290086,2.1376,233.57,233.53,6.73341008]
[1732071291186,2.1376,233.57,233.52,6.73341008]
[1732071291483,6.73341008,233.6,233.52,6.73341008]
[1732071291484,2.1374,233.59,233.52,6.73341008]
[1732071291891,6.73341008,233.6,233.47,2.1384]
[1732071292190,2.1379,233.54,233.5,6.73341008]
[1732071292385,6.73341008,233.58,233.5,6.73341008]
[1732071292783,6.73341008,233.56,233.48,6.73341008]
[1732071292989,2.64,233.55,233.48,6.73341008]
[1732071294089,2.138,233.53,233.44,1.2326]
[1732071294287,2.64,233.55,233.44,1.2326]
[1732071294490,2.64,233.55,233.47,6.73341008]
[1732071295887,6.73341008,233.54,233.47,6.73341008]
[1732071296292,2.138,233.52,233.47,6.73341008]
[1732071296488,6.73341008,233.54,233.47,6.73341008]
[1732071296793,8.87071008,233.6,233.5,2.1382]
[1732071296983,8.87071008,233.6,233.44,1.2326]
[1732071296984,6.73341008,233.58,233.49,6.73341008]
[1732071297793,2.1378,233.55,233.49,6.73341008]
[1732071298494,6.73341008,233.58,233.49,6.73341008]
[1732071298695,2.1373,233.6,233.49,8.87161008]
[1732071298894,6.73341008,233.59,233.49,8.87161008]
[1732071299197,3.38228448,233.65,233.53,6.73341008]
[1732071299495,6.73341008,233.63,233.55,6.73341008]
[1732071300093,2.1372,233.61,233.55,6.73341008]
[1732071300288,6.73341008,233.63,233.55,6.73341008]
[1732071300496,2.137,233.63,233.57,6.73341008]
[1732071303196,1.0,233.66,233.61,6.73341008]
[1732071303396,9.37341008,233.68,233.54,1.2847]
[1732071303595,6.73341008,233.66,233.54,1.2847]
[1732071303795,6.73341008,233.64,233.54,1.2847]
[1732071303994,6.73341008,233.64,233.56,6.73341008]
[1732071304297,0.64740231,233.63,233.56,6.73341008]
[1732071304593,0.64740231,233.63,233.54,1.2847]
[1732071304594,6.73341008,233.58,233.5,6.73341008]
[1732071305191,2.1376,233.57,233.5,6.73341008]
[1732071305386,6.73341008,233.58,233.5,6.73341008]
[1732071305593,6.73341008,233.56,233.48,6.73341008]
[1732071305801,6.73341008,233.54,233.46,6.73341008]
[1732071306803,6.73341008,233.52,233.35,2.08726351]
[1732071306999,6.73341008,233.52,233.44,6.73341008]
[1732071307195,2.64,233.55,233.48,6.73341008]
[1732071307196,2.1379,233.54,233.48,6.73341008]
[1732071307499,2.64,233.55,233.48,6.73341008]
[1732071308600,2.64,233.55,233.44,10.55532129]
[1732071309300,2.64,233.55,233.49,2.1382]
[1732071309696,2.64,233.55,233.44,10.55532129]
[1732071309901,2.64,233.55,233.46,2.1385]
[1732071310102,1.2911,233.61,233.5,10.55532129]
[1732071310403,2.64,233.6,233.5,10.55532129]
[1732071311497,2.1374,233.59,233.5,10.55532129]
[1732071311698,2.64,233.6,233.5,10.55532129]
[1732071311902,2.64,233.6,233.51,2.138]
[1732071312301,2.1377,233.55,233.53,10.55532129]
[1732071312500,0.64753605,233.59,233.48,1.2784]
[1732071312702,0.64751233,233.58,233.48,1.2784]
[1732071312906,2.64,233.6,233.48,1.2784]
[1732071313101,0.64749841,233.59,233.48,1.2784]
[1732071313407,2.1377,233.56,233.48,1.2784]
[1732071313609,15.2849612,233.6,233.48,1.2784]
[1732071313906,10.55532129,233.57,233.43,10.55532129]
[1732071314106,0.64733487,233.56,233.43,10.55532129]
[1732071314707,10.55532129,233.57,233.43,10.55532129]
[1732071314902,15.2849612,233.6,233.45,2.1386]
[1732071315104,4.72963991,233.6,233.46,10.55532129]
[1732071315303,0.64705171,233.59,233.47,1.2175]
[1732071315601,2.4323,233.64,233.49,10.55532129]
[1732071315803,10.55532129,233.63,233.49,10.55532129]
[1732071316119,2.4323,233.64,233.52,10.55532129]
[1732071316502,2.4323,233.64,233.5,2.64]
[1732071316503,1.2504,233.64,233.55,10.55532129]
[1732071316806,15.2522048,233.74,233.58,10.55532129]
[1732071316807,1.2197,233.73,233.58,10.55532129]
[1732071317103,2.1363,233.71,233.6,2.1372]
[1732071317306,10.55532129,233.69,233.52,10.55532129]
[1732071317502,10.55532129,233.66,233.52,10.55532129]
[1732071317700,8.76482999,233.65,233.52,10.55532129]
[1732071317909,0.64747683,233.64,233.52,10.55532129]
[1732071318105,0.64747683,233.64,233.47,1.2175]
[1732071318402,10.55532129,233.63,233.48,10.55532129]
[1732071318607,2.1376,233.57,233.48,10.55532129]
[1732071318908,0.6473068,233.56,233.47,1.2175]
[1732071319208,2.84,233.57,233.47,1.2175]
[1732071319405,2.1377,233.56,233.47,1.2175]
[1732071319909,2.84,233.57,233.48,10.55532129]
[1732071320107,2.84,233.57,233.51,10.55532129]
[1732071320701,2.1374,233.59,233.51,10.55532129]
[1732071320906,4.0671,233.63,233.48,10.55532129]
[1732071321107,14.62242129,233.63,233.48,10.55532129]
[1732071321701,4.0671,233.63,233.48,10.55532129]
[1732071322705,2.1374,233.59,233.49,2.1382]
[1732071323409,2.1374,233.59,233.51,10.55532129]
[1732071324808,4.0671,233.63,233.51,10.55532129]
[1732071325011,2.1372,233.61,233.52,2.1379]
[1732071326108,1.2271,233.63,233.5,2.84]
[1732071326109,2.137,233.63,233.57,10.55532129]
[1732071326512,1.2842,233.7,233.52,1.2722]
[1732071326513,1.2431,233.74,233.6,10.55532129]
[1732071326807,3.48754035,233.73,233.6,10.55532129]
[1732071327008,2.1367,233.67,233.61,1.2979]
[1732071328808,2.1365,233.69,233.61,1.2979]
[1732071329008,18.12003635,233.72,233.61,1.2979]
[1732071329206,8.77987821,233.71,233.61,1.2979]
[1732071329507,174.5499852,233.89,233.63,10.55532129]
[1732071329702,10.55532129,233.82,233.66,10.55532129]
[1732071329903,10.55532129,233.79,233.63,10.55532129]
[1732071330103,2.84,233.78,233.63,10.55532129]
[1732071330305,10.55532129,233.75,233.62,4.6134]
[1732071330511,10.55532129,233.75,233.62,2.4763]
[1732071332211,0.64760269,233.74,233.62,2.4763]
[1732071332711,14.60662129,233.78,233.63,10.55532129]
[1732071332919,8.77628692,233.77,233.63,10.55532129]
[1732071333112,2.1362,233.73,233.63,10.55532129]
[1732071333308,14.60662129,233.78,233.63,10.55532129]
[1732071333615,0.64765931,233.77,233.63,10.55532129]
[1732071334217,2.1364,233.7,233.63,10.55532129]
[1732071335708,1.2113,233.78,233.66,10.55532129]
[1732071335917,1.2113,233.78,233.69,10.55532129]
[1732071336817,2.1359,233.76,233.69,10.55532129]
[1732071337814,1.2113,233.78,233.69,10.55532129]
[1732071338023,3.84,233.81,233.69,10.55532129]
[1732071338415,8.77024037,233.8,233.69,10.55532129]
[1732071338620,0.64817869,233.79,233.69,10.55532129]
[1732071338817,0.64817869,233.79,233.66,10.55532129]
[1732071339028,10.55532129,233.78,233.62,2.4763]
[1732071339321,10.55532129,233.75,233.62,2.4763]
[1732071339516,2.1366,233.68,233.62,2.4763]
[1732071340525,1.0,233.81,233.67,10.55532129]
[1732071340820,1.0,233.81,233.7,10.55532129]
[1732071340821,2.84,233.8,233.7,10.55532129]
[1732071341318,2.1358,233.76,233.7,10.55532129]
[1732071341624,2.84,233.8,233.7,10.55532129]
[1732071341815,10.55532129,233.79,233.64,10.55532129]
[1732071342117,10.55532129,233.76,233.62,2.4763]
[1732071342523,2.1362,233.72,233.62,2.4763]
[1732071342821,3.84,233.81,233.68,16.86213476]
[1732071343014,2.84,233.82,233.72,16.86213476]
[1732071343418,2.84,233.82,233.73,1.1955]
[1732071343620,2.5418,233.83,233.73,1.1955]
[1732071343824,3.02,233.84,233.73,1.1955]
[1732071344012,3.02,233.84,233.68,16.86213476]
[1732071344013,18.10875073,233.83,233.68,16.86213476]
[1732071344322,3.02,233.84,233.68,16.86213476]
[1732071344323,18.7580814,233.82,233.68,16.86213476]
[1732071344519,18.7580814,233.81,233.65,1.1955]
[1732071344720,36.90941616,233.8,233.65,1.1955]
[1732071344920,2.1359,233.75,233.65,1.1955]
[1732071345121,3.66933067,233.74,233.65,1.1955]
[1732071345317,0.64933067,233.73,233.56,16.86213476]
[1732071345819,0.64933067,233.73,233.6,16.86213476]
[1732071346118,3.02,233.74,233.57,1.2709]
[1732071346119,3.02,233.74,233.67,2.1366]
[1732071346324,3.4928,233.8,233.64,16.86213476]
[1732071346518,3.4928,233.8,233.65,1.2709]
[1732071346916,2.1358,233.77,233.68,2.1365]
[1732071347628,3.02,233.83,233.69,16.86213476]
[1732071347825,0.64996488,233.82,233.69,16.86213476]
[1732071348121,0.64986324,233.81,233.65,1.2709]
[1732071348322,3.02,233.83,233.7,2.1363]
[1732071348525,0.64981622,233.82,233.7,2.1363]
[1732071348925,0.64981622,233.82,233.68,16.86213476]
[1732071348926,3.02,233.83,233.68,16.86213476]
[1732071349117,3.02,233.83,233.71,2.1362]
[1732071349323,3.02,233.83,233.68,16.86213476]
[1732071350322,2.1353,233.82,233.68,16.86213476]
[1732071350518,2.1353,233.82,233.68,19.88213476]
[1732071351435,2.1353,233.82,233.74,2.1359]
[1732071351727,2.1351,233.84,233.72,16.86213476]
[1732071351925,1.3045,233.88,233.73,2.5061]
[1732071352230,3.67040396,233.87,233.73,2.5061]
[1732071352424,1.3045,233.88,233.74,1.2217]
[1732071353227,2.1351,233.84,233.77,2.1356]
[1732071353526,1.3045,233.88,233.74,1.2217]
[1732071353722,0.65067515,233.87,233.74,1.2217]
[1732071353920,1.3045,233.88,233.74,1.2217]
[1732071354327,1.3045,233.88,233.76,2.1358]
[1732071354528,0.65069353,233.87,233.76,2.1358]
[1732071354723,1.3045,233.88,233.74,1.2217]
[1732071354920,0.65067728,233.87,233.74,1.2217]
[1732071355521,2.1351,233.84,233.77,2.1357]
[1732071356633,2.1349,233.86,233.77,2.1357]
[1732071357132,2.1348,233.87,233.77,2.1357]
[1732071357327,18.08863476,233.91,233.74,1.2217]
[1732071357522,4.2465,233.91,233.74,1.2217]
[1732071357922,3.02,233.9,233.76,16.86213476]
[1732071358124,3.02,233.9,233.74,1.2217]
[1732071358125,18.06793476,233.99,233.75,3.02]
[1732071358328,3.67061966,233.98,233.8,16.86213476]
[1732071358532,0.65061966,233.97,233.8,16.86213476]
[1732071358732,0.65061966,233.97,233.86,2.1349]
[1732071358927,16.86213476,233.95,233.75,19.88213476]
[1732071359130,16.86213476,233.95,233.81,2.1353]
[1732071359131,2.1346,233.89,233.81,2.1353]
[1732071359334,3.02,233.91,233.75,19.88213476]
[1732071359742,2.1345,233.9,233.81,2.1353]
[1732071359942,3.02,233.91,233.81,2.1353]
[1732071360841,5.1544,233.91,233.83,2.1351]
[1732071361140,3.02,233.91,233.77,16.86213476]
[1732071362341,5.1545,233.91,233.77,16.86213476]
[1732071363052,5.1545,233.91,233.83,2.1351]
[1732071363350,5.1545,233.91,233.77,16.86213476]
[1732071363742,2.1343,233.93,233.77,16.86213476]
[1732071364041,2.1343,233.93,233.81,16.86213476]
[1732071364343,2.1343,233.93,233.86,2.1349]
[1732071366044,2.1341,233.95,233.86,2.1349]
[1732071366345,2.4851,234.0,233.85,16.86213476]
[1732071366550,5.5051,234.0,233.86,1.199]
[1732071367149,5.5051,234.0,233.88,2.1346]
[1732071367350,5.5051,234.0,233.86,1.199]
[1732071367351,2.1338,233.99,233.86,1.199]
[1732071367645,2.4851,234.0,233.9,2.1345]
[1732071367839,2.4851,234.0,233.86,1.199]
[1732071369344,2.1342,233.94,233.86,3.3338]
[1732071369546,5.1542,233.94,233.86,3.3338]
[1732071370442,2.1346,233.9,233.75,3.02]
[1732071370644,2.1346,233.9,233.8,10.52355924]
[1732071370947,2.1344,233.92,233.83,2.1351]
[1732071371342,3.02,233.94,233.8,10.52355924]
[1732071371943,2.1346,233.89,233.81,2.1353]
[1732071372546,2.1346,233.89,233.8,10.52355924]
[1732071372851,2.1346,233.89,233.82,2.1352]
[1732071373448,3.02,233.94,233.82,2.1352]
[1732071374247,2.1346,233.9,233.82,2.1352]
[1732071375242,2.135,233.85,233.76,1.1993]
[1732071375446,3.08,233.87,233.76,11.72285924]
[1732071375947,2.135,233.85,233.76,11.72285924]
[1732071376645,5.2148,233.87,233.79,2.1355]
[1732071377242,2.1349,233.86,233.79,2.1355]
[1732071377856,2.1349,233.86,233.76,11.72285924]
[1732071378154,2.1349,233.86,233.77,2.1356]
[1732071378348,2.1349,233.86,233.76,11.72285924]
[1732071378853,3.08,233.87,233.76,11.72285924]
[1732071379154,2.135,233.85,233.76,11.72285924]
[1732071379355,3.08,233.87,233.76,1.1993]
[1732071380155,2.1351,233.84,233.76,1.1993]
[1732071381043,2.1352,233.83,233.76,1.1993]
[1732071381455,3.08,233.87,233.76,1.1993]
[1732071382048,2.1351,233.84,233.76,1.1993]
[1732071382445,3.08,233.87,233.76,1.1993]
[1732071382755,2.1349,233.86,233.76,3.3351]
[1732071383156,2.1346,233.9,233.79,10.52355924]
[1732071383356,5.2571933,233.89,233.76,11.72285924]
[1732071383658,2.1353,233.82,233.76,1.1993]
[1732071383850,15.72775451,233.89,233.72,11.77485924]
[1732071385355,2.1352,233.83,233.74,2.1359]
[1732071385949,15.72775451,233.89,233.74,2.1359]
[1732071386257,15.72775451,233.89,233.72,11.77485924]
[1732071386454,15.72775451,233.89,233.75,12.65935924]
[1732071387457,10.52355924,233.86,233.7,11.78705924]
[1732071387854,2.1353,233.82,233.73,2.136]
[1732071388060,3.08,233.81,233.73,2.136]
[1732071388655,3.08,233.81,233.73,10.52355924]
[1732071389659,3.08,233.88,233.73,10.52355924]
[1732071390059,2.135,233.85,233.74,2.136]
[1732071390257,2.135,233.85,233.73,10.52355924]
[1732071391259,2.135,233.85,233.75,2.1359]
[1732071391461,2.135,233.85,233.73,10.52355924]
[1732071392270,2.135,233.85,233.76,10.52355924]
[1732071392465,2.1347,233.89,233.79,10.52355924]
[1732071392668,2.1347,233.89,233.71,2.14428323]
[1732071392669,3.08,233.88,233.76,10.52355924]
[1732071392869,2.09171261,233.87,233.76,10.52355924]
[1732071393471,2.135,233.85,233.76,12.65935924]
[1732071394475,2.135,233.85,233.77,2.1357]
[1732071395068,2.1351,233.84,233.76,10.52355924]
[1732071396368,2.1351,233.84,233.76,12.65935924]
[1732071396971,2.1353,233.84,233.76,12.65945924]
[1732071397569,2.1353,233.84,233.76,10.52355924]
[1732071397774,2.1353,233.84,233.77,2.1358]
[1732071398764,5.2061812,233.88,233.77,2.1358]
[1732071399166,5.2061812,233.88,233.76,10.52355924]
[1732071399167,5.2061812,233.88,233.78,2.1358]
[1732071400978,2.135,233.87,233.78,2.1358]
[1732071401177,5.2061812,233.88,233.78,2.1358]
[1732071401372,10.52355924,233.86,233.7,11.78705924]
[1732071401678,2.1357,233.79,233.7,1.2635]
[1732071401878,3.08,233.78,233.7,1.2635]
[1732071402375,3.08,233.78,233.71,2.1364]
[1732071402572,2.1361,233.75,233.6,1.1952]
[1732071402777,3.08,233.78,233.62,1.2196]
[1732071403072,3.08,233.78,233.65,2.137]
[1732071403073,13.60355924,233.78,233.65,2.137]
[1732071403374,13.60355924,233.78,233.62,11.74315924]
[1732071403375,2.1362,233.74,233.62,11.74315924]
[1732071403673,13.60355924,233.78,233.62,11.74315924]
[1732071403674,10.52355924,233.75,233.62,11.74315924]
[1732071403876,10.52355924,233.75,233.59,10.52355924]
[1732071403877,10.52355924,233.72,233.59,10.52355924]
[1732071404084,5.5314,233.71,233.59,10.52355924]
[1732071404271,7.62409371,233.71,233.59,10.52355924]
[1732071404875,2.1367,233.68,233.6,2.1374]
[1732071405379,2.1367,233.68,233.59,10.52355924]
[1732071405678,10.52355924,233.69,233.56,20.54119865]
[1732071406179,2.1369,233.67,233.56,22.67899865]
[1732071406375,10.52355924,233.69,233.56,20.54119865]
[1732071407179,5.5314,233.71,233.59,10.52355924]
[1732071407380,2.4514,233.71,233.59,10.52355924]
[1732071407575,3.08,233.7,233.59,10.52355924]
[1732071407775,3.08,233.7,233.56,11.74315924]
[1732071408175,3.08,233.7,233.56,1.2196]
[1732071408380,3.08,233.7,233.6,10.52355924]
[1732071409179,3.08,233.69,233.6,10.52355924]
[1732071409680,3.08,233.69,233.57,10.52355924]
[1732071410784,2.1368,233.67,233.58,2.1376]
[1732071411585,3.08,233.69,233.57,10.52355924]
[1732071411778,2.1368,233.66,233.57,12.66105924]
[1732071412178,2.1366,233.68,233.58,2.1374]
[1732071412882,3.08,233.69,233.6,12.66075924]
[1732071413087,3.08,233.69,233.63,10.52355924]
[1732071415288,3.08,233.71,233.63,10.52355924]
[1732071415689,2.1365,233.69,233.6,12.66075924]
[1732071416084,3.08,233.71,233.6,10.52355924]
[1732071416280,2.1365,233.69,233.6,10.52355924]
[1732071416688,2.1368,233.66,233.57,12.66105924]
[1732071417990,2.1369,233.65,233.57,12.66105924]
[1732071418286,2.1369,233.65,233.46,15.41602563]
[1732071418287,3.08,233.64,233.49,10.52355924]
[1732071419188,2.1372,233.61,233.53,2.1379]
[1732071419487,10.52355924,233.62,233.47,1.2862]
[1732071419688,12.6979716,233.62,233.47,1.2862]
[1732071421499,12.6979716,233.62,233.48,2.1384]
[1732071422284,10.52355924,233.59,233.47,1.2862]
[1732071422492,2.1379,233.54,233.43,10.52355924]
[1732071422687,5.2179,233.54,233.43,10.52355924]
[1732071422984,10.52355924,233.59,233.45,2.1386]
[1732071422985,2.11589553,233.58,233.45,2.1386]
[1732071423187,2.1379,233.53,233.46,0.78535779]
[1732071423388,2.11589553,233.58,233.46,0.78535779]
[1732071423591,13.60355924,233.59,233.49,10.52355924]
[1732071423592,3.08,233.59,233.49,10.52355924]
[1732071423892,13.60355924,233.59,233.5,0.78535779]
[1732071424088,13.60355924,233.59,233.51,0.78535779]
[1732071424285,13.60355924,233.59,233.48,2.1384]
[1732071424286,2.1377,233.56,233.52,0.78535779]
[1732071424487,2.1377,233.56,233.53,0.78535779]
[1732071424686,2.1377,233.56,233.43,10.52355924]
[1732071424883,2.1377,233.56,233.44,0.78506298]
[1732071425082,13.60355924,233.59,233.44,0.78506298]
[1732071425287,2.1378,233.55,233.47,2.1384]
[1732071425487,2.1378,233.55,233.48,0.78506298]
[1732071425993,2.1378,233.55,233.47,2.1384]
[1732071426594,3.08,233.59,233.46,10.52355924]
[1732071426889,2.1377,233.56,233.47,0.78513115]
[1732071427088,3.08,233.59,233.47,0.78513115]
[1732071427293,2.1372,233.62,233.52,10.52355924]
[1732071427490,3.52899118,233.61,233.53,1.1797]
[1732071427694,3.52899118,233.6,233.53,1.1797]
[1732071427895,2.1372,233.61,233.53,1.1797]
[1732071428589,3.52895459,233.6,233.53,1.1797]
[1732071428894,2.1372,233.61,233.54,2.1378]
[1732071429094,3.52907328,233.6,233.54,2.1378]
[1732071429295,2.1372,233.61,233.54,2.1378]
[1732071430489,3.52831808,233.6,233.53,3.3176]
[1732071430697,2.1372,233.61,233.53,1.1797]
[1732071431093,2.1369,233.64,233.53,1.1797]
[1732071431295,2.1369,233.64,233.55,10.52355924]
[1732071431496,10.52355924,233.67,233.53,1.1797]
[1732071431802,10.52355924,233.64,233.49,2.1382]
[1732071431994,3.53216686,233.63,233.49,3.3932]
[1732071432193,5.64953609,233.62,233.49,3.3932]
[1732071432393,2.1374,233.59,233.51,12.66165924]
[1732071432599,10.52355924,233.64,233.52,0.78511303]
[1732071432801,10.52355924,233.64,233.49,1.255]
[1732071432802,1.2446,233.63,233.49,1.255]
[1732071433108,2.1167276,233.62,233.5,0.78511382]
[1732071433800,3.3107276,233.62,233.5,0.78511382]
[1732071434106,2.1375,233.58,233.5,0.78511382]
[1732071434806,10.52355924,233.65,233.5,0.78511382]
[1732071435006,3.53302026,233.64,233.51,0.78511382]
[1732071435200,10.52355924,233.65,233.49,1.3045]
[1732071435400,3.53382478,233.64,233.5,0.78520548]
[1732071435603,10.52355924,233.65,233.49,1.3045]